bitfinex/quotes_ETHUSD_20260312
["timestamp","ask_amount","ask_price","bid_price","bid_amount"]
[1773317314928,1.21400475,2059.3,2059.0,0.0011]
[1773317320044,1.21400475,2059.3,2059.0,1.16819831]
[1773317320237,1.21499469,2059.4,2059.0,1.16819831]
[1773317320926,1.08571483,2059.3,2059.0,0.0011]
[1773317321532,1.21499469,2059.4,2059.0,1.16819831]
[1773317322246,2.29971958,2059.3,2059.2,0.0011]
[1773317322619,1.08571483,2059.2,2059.0,0.0011]
[1773317323818,1.21497359,2059.4,2059.0,1.11684793]
[1773317324024,3.66597359,2059.4,2059.0,1.11684793]
[1773317324219,3.66595581,2059.4,2059.1,1.11574793]
[1773317324418,2.452,2059.4,2059.1,1.11574793]
[1773317324622,3.66595202,2059.4,2059.1,1.11574793]
[1773317324927,1.21495202,2059.4,2059.1,1.11574793]
[1773317326324,0.001,2059.4,2059.1,2.32985545]
[1773317326850,2.29141394,2059.7,2059.2,1.11574793]
[1773317327150,1.07762167,2059.9,2059.3,1.11574793]
[1773317328653,2.29130374,2059.9,2059.4,1.11574793]
[1773317330721,1.01490297,2060.1,2059.5,1.05443815]
[1773317330950,1.01490297,2060.3,2059.5,1.05443815]
[1773317331156,1.01490297,2060.2,2059.5,1.05443815]
[1773317331662,1.01490297,2060.1,2059.3,1.05443815]
[1773317331845,1.01490297,2060.1,2059.2,1.05443815]
[1773317332158,1.01490297,2060.0,2059.2,1.05443815]
[1773317332650,2.22850648,2060.0,2059.4,1.05443815]
[1773317332963,1.21352458,2060.2,2059.4,1.05443815]
[1773317333167,1.01490297,2060.1,2059.4,1.05443815]
[1773317334566,1.01490297,2060.1,2059.6,1.05553815]
[1773317334863,1.01490297,2060.1,2059.7,1.21376899]
[1773317334864,0.001,2060.0,2059.7,1.21376899]
[1773317335030,0.001,2060.0,2059.8,1.05443815]
[1773317335764,0.001,2060.0,2059.7,1.21376899]
[1773317335967,0.001,2060.0,2059.7,2.26820714]
[1773317338052,1.01590297,2060.0,2059.7,1.05443815]
[1773317338253,0.001,2060.0,2059.7,1.05443815]
[1773317339178,0.001,2060.0,2059.8,1.05443815]
[1773317340482,0.001,2060.0,2059.6,2.26935699]
[1773317340483,1.01590297,2060.0,2059.6,2.26935699]
[1773317340680,1.01590297,2060.0,2059.6,2.26936127]
[1773317341590,0.001,2060.0,2059.7,1.05443815]
[1773317343394,0.001,2060.0,2059.8,1.05443815]
[1773317346873,0.001,2060.0,2059.7,1.05443815]
[1773317347073,0.001,2060.0,2059.7,2.26817561]
[1773317347493,0.001,2060.0,2059.7,1.05443815]
[1773317347693,0.001,2060.0,2059.7,2.26820222]
[1773317348374,0.001,2059.8,2059.7,1.05443815]
[1773317348575,0.001,2059.8,2059.7,2.26820714]
[1773317348875,0.001,2059.8,2059.7,1.05443815]
[1773317349071,0.001,2059.8,2059.7,2.26820714]
[1773317349910,0.001,2060.0,2059.7,2.26820714]
[1773317350204,0.001,2060.0,2059.8,1.05443815]
[1773317351905,4.85440834,2060.5,2059.9,1.05443815]
[1773317351906,2.22827169,2060.4,2059.9,1.05443815]
[1773317352402,1.21336872,2060.4,2059.9,1.05443815]
[1773317352701,1.21336872,2060.4,2059.7,1.05443815]
[1773317352702,1.01490297,2060.3,2059.7,1.05443815]
[1773317352900,1.01490297,2060.3,2059.6,1.2148846]
[1773317353110,1.01490297,2060.3,2059.6,1.21491565]
[1773317353900,1.01490297,2060.3,2059.6,0.0011]
[1773317354103,1.01490297,2060.1,2059.6,1.21492266]
[1773317354978,1.01490297,2060.1,2059.6,2.26936081]
[1773317356493,2.2284952,2060.0,2059.6,2.26936081]
[1773317356694,2.2284952,2060.0,2059.6,2.26935823]
[1773317356902,2.2284952,2060.0,2059.6,1.05553815]
[1773317357211,1.01490297,2059.9,2059.4,0.0011]
[1773317357419,1.01490297,2059.8,2059.4,0.0011]
[1773317358290,2.2284952,2060.0,2059.5,1.05443815]
[1773317358501,2.2284952,2060.0,2059.5,2.26830084]
[1773317358702,1.01490297,2059.9,2059.5,2.2683241]
[1773317360919,2.22858186,2059.9,2059.6,0.0011]
[1773317361213,0.001,2059.8,2059.6,0.0011]
[1773317361602,1.01973805,2059.8,2059.6,0.0011]
[1773317363084,1.01873805,2059.7,2059.6,0.0011]
[1773317363788,1.01873805,2059.7,2059.4,0.0011]
[1773317365097,1.01873805,2059.5,2059.4,0.0011]
[1773317367298,2.23262491,2059.5,2059.4,0.0011]
[1773317367618,1.01873805,2059.4,2059.1,0.0011]
[1773317369392,1.01873805,2059.2,2059.1,0.0011]
[1773317370609,3.66700475,2059.3,2059.1,0.0011]
[1773317371123,4.6857428,2059.3,2059.1,0.0011]
[1773317371991,2.2327428,2059.3,2059.1,0.0011]
[1773317372606,2.454,2059.4,2059.1,0.0011]
[1773317372806,1.21395179,2059.4,2059.1,0.98361495]
[1773317373132,4.68658986,2059.6,2059.1,0.98361495]
[1773317373435,1.01873805,2059.5,2059.3,0.0011]
[1773317373719,1.2139458,2059.4,2059.3,0.0011]
[1773317373923,1.01873805,2059.3,2059.1,0.0011]
[1773317375829,1.21406371,2059.2,2059.1,0.0011]
[1773317376134,1.01873805,2059.1,2058.8,0.0011]
[1773317378831,2.23288938,2059.1,2058.8,0.0011]
[1773317381113,1.01873805,2059.0,2058.8,0.0011]
[1773317381820,1.21415133,2059.1,2058.8,0.0011]
[1773317382222,2.23288938,2059.1,2058.8,0.0011]
[1773317382740,1.21415133,2059.1,2058.8,0.98361495]
[1773317383620,4.69183842,2059.2,2058.8,0.98361495]
[1773317383940,2.23283842,2059.2,2058.8,0.98361495]
[1773317384143,4.69283842,2059.2,2058.8,0.98361495]
[1773317384654,0.98994655,2059.1,2058.8,0.98361495]
[1773317384940,1.21410037,2059.2,2058.8,0.98361495]
[1773317385237,1.21406371,2059.2,2058.8,0.98361495]
[1773317385429,2.20401026,2059.2,2058.8,0.98361495]
[1773317386232,0.98994655,2059.1,2059.0,0.0011]
[1773317386406,0.99094655,2059.1,2059.0,0.0011]
[1773317387215,0.001,2059.1,2059.0,0.0011]
[1773317388552,0.98994655,2059.5,2059.0,0.92907514]
[1773317388709,1.21387955,2059.6,2059.1,0.92797514]
[1773317389028,2.2038261,2059.6,2059.1,0.92797514]
[1773317389263,0.001,2059.8,2059.0,0.65660437]
[1773317389264,0.99094655,2059.8,2059.2,0.92797514]
[1773317389422,0.98994655,2059.7,2059.2,0.92797514]
[1773317389933,1.21472339,2059.8,2059.2,0.92797514]
[1773317390519,0.98992256,2059.7,2059.2,0.92797514]
[1773317391433,0.98992256,2059.5,2059.0,2.141716]
[1773317392131,0.98992256,2059.5,2059.0,0.92754372]
[1773317392432,0.98992256,2059.5,2059.1,0.92644372]
[1773317392634,0.001,2059.8,2059.4,0.92644372]
[1773317392809,0.001,2059.8,2059.0,7.11481913]
[1773317392810,0.001,2059.8,2059.5,1.58194809]
[1773317393013,0.001,2059.8,2059.5,0.92644372]
[1773317393014,1.21471177,2059.8,2059.5,0.92644372]
[1773317393213,0.001,2059.8,2059.5,0.92644372]
[1773317393736,2.465,2060.2,2059.5,0.92644372]
[1773317393737,0.98992256,2060.2,2059.6,0.92644372]
[1773317393943,2.20327918,2060.4,2059.8,0.92644372]
[1773317395122,0.98992256,2060.3,2059.8,0.92644372]
[1773317395329,2.20339522,2060.3,2059.8,2.14012738]
[1773317396440,1.21430476,2060.5,2059.9,0.92644372]
[1773317396813,2.20422732,2060.5,2059.9,0.92644372]
[1773317397118,0.98992256,2060.4,2059.9,0.92644372]
[1773317398347,2.20331963,2060.4,2059.9,2.14005179]
[1773317398518,0.001,2060.3,2059.9,2.14005179]
[1773317398841,0.001,2060.3,2059.9,0.92644372]
[1773317399026,0.001,2060.3,2059.9,2.14009294]
[1773317400445,0.99092256,2060.3,2059.9,0.92644372]
[1773317400817,0.99092256,2060.3,2059.7,0.91417122]
[1773317401214,0.99092256,2060.3,2059.7,2.12793921]
[1773317401834,0.99092256,2060.3,2059.8,0.91082065]
[1773317402049,0.001,2060.3,2059.8,0.91082065]
[1773317402417,0.001,2060.3,2059.8,2.12449093]
[1773317402749,0.001,2060.3,2059.8,1.21367028]
[1773317403046,0.001,2060.3,2059.9,0.9074785]
[1773317405948,0.001,2060.3,2060.0,2.11109456]
[1773317406451,0.001,2060.3,2060.0,0.89750233]
[1773317407750,0.99092256,2060.3,2059.8,2.10459047]
[1773317408146,0.99092256,2060.3,2059.8,0.89089318]
[1773317408655,0.99092256,2060.3,2059.7,0.88760103]
[1773317409957,0.001,2060.3,2059.9,0.88431711]
[1773317410555,0.99092256,2060.3,2059.9,0.88431711]
[1773317410925,0.99092256,2060.3,2060.0,0.0011]
[1773317411121,0.001,2060.1,2060.0,0.0011]
[1773317411323,0.001,2060.3,2060.0,0.87787391]
[1773317411528,0.99092256,2060.3,2060.0,0.0011]
[1773317412158,1.21347441,2060.2,2060.0,0.0011]
[1773317414864,2.20437566,2060.3,2060.0,0.0011]
[1773317415773,1.2144531,2060.3,2060.0,0.86491444]
[1773317415967,1.21442016,2060.3,2060.0,0.86491444]
[1773317416270,0.001,2060.5,2060.2,0.86381444]
[1773317416439,0.65783122,2061.0,2060.6,0.85958747]
[1773317416440,1.87087183,2061.0,2060.6,0.85958747]
[1773317416838,0.98992256,2060.9,2060.2,0.85958747]
[1773317417038,0.98992256,2060.9,2060.0,0.86068747]
[1773317417272,0.98992256,2060.8,2060.0,0.86068747]
[1773317417568,0.98992256,2060.7,2060.0,0.86068747]
[1773317418065,0.98992256,2060.7,2060.1,0.85639777]
[1773317418467,0.98992256,2060.7,2060.0,0.0011]
[1773317418768,0.98992256,2060.5,2060.0,0.0011]
[1773317419135,0.98992256,2060.5,2060.0,0.85431603]
[1773317420369,0.87371938,2060.4,2060.0,0.0011]
[1773317420535,2.0871349,2060.3,2060.0,0.0011]
[1773317422666,0.87371938,2060.2,2060.0,0.0011]
[1773317424768,1.21353332,2060.1,2060.0,0.0011]
[1773317425044,2.08724292,2060.2,2060.0,0.0011]
[1773317426066,0.001,2060.3,2060.0,0.8320614]
[1773317426269,0.001,2060.3,2060.1,0.82781366]
[1773317426574,1.31240126,2061.0,2060.3,0.82681366]
[1773317426575,1.21314275,2060.8,2060.3,0.82681366]
[1773317426808,4.85236078,2060.9,2060.4,0.82681366]
[1773317426968,2.08678163,2060.9,2060.4,0.82681366]
[1773317427654,0.87371938,2060.9,2060.4,0.82681366]
[1773317427849,1.87083751,2061.0,2060.4,0.82681366]
[1773317428090,2.74455689,2061.0,2060.4,0.82681366]
[1773317428785,2.74455689,2061.0,2060.5,1.21329774]
[1773317429299,0.87371938,2060.9,2060.4,2.04012362]
[1773317429579,0.87371938,2060.9,2060.4,0.82681366]
[1773317431666,1.21312111,2060.8,2060.4,0.82681366]
[1773317431869,2.08684049,2060.8,2060.4,0.82681366]
[1773317434969,2.08684049,2060.8,2060.2,2.015399]
[1773317434970,0.87371938,2060.7,2060.2,2.015399]
[1773317435374,1.21312111,2060.8,2060.3,0.79886128]
[1773317435375,2.08684049,2060.8,2060.3,0.79886128]
[1773317435603,0.87371938,2060.7,2060.3,0.79886128]
[1773317438084,1.21323886,2060.6,2060.3,0.79886128]
[1773317438682,1.21323886,2060.6,2060.5,0.0011]
[1773317438972,1.21323886,2060.6,2060.0,2.87567004]
[1773317438973,0.87371938,2060.5,2060.0,0.0011]
[1773317439203,0.87371938,2060.5,2060.3,0.0011]
[1773317439572,0.87371938,2060.4,2060.3,0.0011]
[1773317440699,0.87371938,2060.3,2060.0,0.0011]
[1773317442905,0.87371938,2060.4,2060.0,0.0011]
[1773317445385,1.21341552,2060.3,2060.0,0.0011]
[1773317446570,2.06804184,2060.3,2060.0,0.0011]
[1773317447004,0.85462632,2060.2,2060.0,0.0011]
[1773317447210,0.85462632,2060.2,2059.8,0.0011]
[1773317447577,0.85462632,2060.0,2059.8,0.0011]
[1773317450394,1.21365114,2059.9,2059.8,0.0011]
[1773317451794,2.06825999,2060.0,2059.8,0.0011]
[1773317452984,0.90180962,2059.9,2059.8,0.0011]
[1773317453390,0.90180962,2059.9,2059.7,0.0011]
[1773317454211,2.11551968,2059.8,2059.7,0.0011]
[1773317456420,1.21371006,2059.8,2059.7,0.0011]
[1773317459906,2.11551968,2059.8,2059.7,0.0011]
[1773317463932,2.11651968,2059.8,2059.7,0.0011]
[1773317466602,0.90180962,2059.7,2059.6,0.0011]
[1773317467119,2.11557861,2059.7,2059.6,0.0011]
[1773317467507,1.21376899,2059.7,2059.6,0.0011]
[1773317468094,1.21474997,2059.8,2059.6,0.70986582]
[1773317468517,1.21473275,2059.8,2059.6,0.70986582]
[1773317469000,0.001,2059.8,2059.6,0.70986582]
[1773317470554,0.90280962,2059.8,2059.6,0.0011]
[1773317471404,1.21376899,2059.7,2059.6,0.0011]
[1773317472138,1.21376899,2059.7,2059.1,1.87018209]
[1773317473436,2.11557861,2059.7,2059.2,0.01214803]
[1773317474233,0.90180962,2059.6,2059.2,0.01214803]
[1773317474833,0.90180962,2059.6,2059.3,0.00929736]
[1773317475028,0.90280962,2059.8,2059.4,0.00929736]
[1773317475231,0.001,2059.8,2059.6,0.0064536]
[1773317475439,1.21351735,2060.2,2059.8,0.0054536]
[1773317475804,1.21341699,2060.3,2059.8,0.0054536]
[1773317476234,1.21341699,2060.3,2059.8,0.0065536]
[1773317476624,4.85359307,2060.4,2059.8,1.22026366]
[1773317476937,4.85359307,2060.4,2060.0,0.00261674]
[1773317479609,2.11513404,2060.5,2060.0,0.00261674]
[1773317479836,1.21426524,2060.6,2060.1,0.65497859]
[1773317480150,0.001,2060.6,2060.1,0.65497859]
[1773317480318,1.21320442,2060.7,2060.3,0.65497859]
[1773317481620,2.10619071,2060.8,2060.3,1.86836911]
[1773317481947,1.21309473,2060.9,2060.3,1.86836911]
[1773317482239,0.89305171,2060.9,2060.3,1.86836911]
[1773317482440,0.89305171,2060.9,2060.3,1.86837741]
[1773317483640,1.21306363,2060.9,2060.5,0.65497859]
[1773317483845,1.8708832,2061.0,2060.5,0.65497859]
[1773317484142,2.76393491,2061.0,2060.5,0.65497859]
[1773317485142,1.8708832,2061.0,2060.5,0.65497859]
[1773317485543,1.8708548,2061.0,2060.5,0.65497859]
[1773317485715,1.8708548,2061.0,2060.5,1.86825556]
[1773317485915,0.89305171,2060.9,2060.4,1.21330242]
[1773317486414,0.89305171,2060.9,2060.5,0.65497859]
[1773317488346,0.89305171,2060.8,2060.4,1.21330242]
[1773317488513,0.89305171,2060.8,2060.3,1.86836471]
[1773317488840,0.89305171,2060.8,2060.3,1.8683837]
[1773317489241,0.89305171,2060.8,2060.1,6.47198963]
[1773317489447,0.89405171,2060.7,2060.1,6.47198963]
[1773317490425,2.10629057,2060.6,2060.1,6.47198963]
[1773317492362,2.0908064,2060.5,2060.1,1.8729494]
[1773317493367,2.0908064,2060.5,2060.1,1.87296437]
[1773317494040,2.0908064,2060.5,2060.1,0.65944773]
[1773317494732,1.21335662,2060.4,2060.1,0.65944773]
[1773317495335,3.30414909,2060.5,2060.1,1.87297866]
[1773317495546,3.30414909,2060.5,2060.1,0.65944773]
[1773317496060,1.21334269,2060.5,2060.1,0.65944773]
[1773317496237,2.0908064,2060.4,2060.1,0.65944773]
[1773317496852,1.21341552,2060.3,2060.1,0.00446914]
[1773317497163,3.30421191,2060.4,2060.1,0.00446914]
[1773317497560,2.0908064,2060.4,2060.1,1.21798092]
[1773317497738,1.21334422,2060.5,2060.1,1.87295951]
[1773317498132,2.0908064,2060.6,2060.1,1.87295951]
[1773317498441,3.30498762,2060.7,2060.3,0.65497859]
[1773317498835,3.30498762,2060.7,2060.2,1.21345115]
[1773317499964,2.0908064,2060.6,2060.2,1.21345115]
[1773317500165,2.0908064,2060.6,2060.1,1.21795347]
[1773317500541,1.0454032,2060.9,2060.1,1.21795347]
[1773317500868,0.65783122,2061.0,2060.1,0.65497859]
[1773317500869,1.21317998,2060.7,2060.1,0.65497859]
[1773317501042,1.21317998,2060.7,2060.3,0.0011]
[1773317501236,0.001,2060.4,2060.3,0.0011]
[1773317502849,1.0464032,2060.4,2060.3,0.0011]
[1773317503158,2.25975982,2060.4,2060.3,0.0011]
[1773317504536,1.0448532,2060.3,2060.0,0.0011]
[1773317505340,1.21346349,2060.3,2060.0,0.0011]
[1773317505541,1.0448532,2060.2,2060.0,0.0011]
[1773317506150,1.21436115,2060.4,2060.0,0.0011]
[1773317506545,2.25921435,2060.4,2060.0,0.0011]
[1773317507669,2.25924772,2060.4,2060.0,0.0011]
[1773317508461,1.0458532,2060.4,2060.0,0.0011]
[1773317511756,1.0448532,2060.2,2060.0,0.0011]
[1773317512565,1.0448532,2060.2,2059.8,0.0011]
[1773317513674,1.0458532,2060.2,2059.8,0.0011]
[1773317513875,2.25881634,2060.2,2060.0,0.0011]
[1773317515276,2.015563,2060.2,2060.0,0.0011]
[1773317516675,1.0443032,2060.1,2060.0,0.0011]
[1773317517466,1.0443032,2060.1,2059.8,0.0011]
[1773317518272,1.0437532,2059.9,2059.8,0.0011]
[1773317518951,1.0437532,2059.9,2059.7,0.0011]
[1773317520383,2.25746326,2059.8,2059.7,0.0011]
[1773317521153,1.0437532,2059.8,2059.7,0.0011]
[1773317522261,1.28590654,2059.7,2059.5,0.0011]
[1773317522473,2.49970757,2059.7,2059.5,0.0011]
[1773317523281,1.28590654,2059.7,2059.5,0.0011]
[1773317523474,2.4996756,2059.7,2059.5,0.0011]
[1773317523984,1.28590654,2059.7,2059.5,0.0011]
[1773317524657,2.49967572,2059.7,2059.5,0.0011]
[1773317526285,1.0437532,2059.6,2059.5,0.0011]
[1773317526685,2.25758112,2059.6,2059.5,0.0011]
[1773317529083,0.24105334,2059.5,2059.3,0.0011]
[1773317529956,1.28480654,2059.5,2059.3,0.0011]
[1773317531303,2.49874816,2059.5,2059.3,0.0011]
[1773317531786,1.0437532,2059.4,2059.3,0.0011]
[1773317533862,1.0437532,2059.6,2059.3,0.0011]
[1773317535175,1.28480654,2059.5,2059.3,0.0011]
[1773317536500,2.49871979,2059.5,2059.3,0.0011]
[1773317537301,1.45496659,2059.5,2059.3,0.0011]
[1773317537602,0.24105334,2059.5,2059.3,0.0011]
[1773317538019,1.45494873,2059.5,2059.3,0.0011]
[1773317538170,0.24105334,2059.5,2059.3,0.0011]
[1773317539306,1.0437532,2059.7,2059.3,0.65615599]
[1773317539603,2.25752779,2059.7,2059.3,0.65615599]
[1773317539764,1.0437532,2059.7,2059.3,0.65615599]
[1773317540410,1.0437532,2059.7,2059.3,1.87010428]
[1773317540608,1.21375988,2059.8,2059.3,1.87010428]
[1773317540609,1.0437532,2059.8,2059.3,0.0011]
[1773317540969,1.0437532,2059.8,2059.3,1.215087]
[1773317542308,1.0437532,2059.8,2059.3,0.0011]
[1773317542670,1.0437532,2059.6,2059.3,0.0011]
[1773317543819,1.0437532,2059.7,2059.3,1.21510475]
[1773317543961,1.0437532,2059.7,2059.3,0.24672147]
[1773317545005,1.21382792,2059.6,2059.3,0.24672147]
[1773317546708,2.11933491,2059.8,2059.4,0.25479033]
[1773317547610,0.90557945,2059.7,2059.2,0.8437561]
[1773317547801,0.90557945,2059.7,2059.2,0.0011]
[1773317548176,1.21375546,2059.8,2059.2,0.0011]
[1773317548177,0.90557945,2059.5,2059.2,0.0011]
[1773317549483,1.2139458,2059.4,2059.2,0.0011]
[1773317549807,0.90557945,2059.3,2059.2,0.0011]
[1773317551711,2.1195842,2059.3,2059.2,0.0011]
[1773317553019,1.21399201,2059.4,2059.2,0.0011]
[1773317553187,1.21399201,2059.4,2059.2,0.24576242]
[1773317553391,0.90657945,2059.5,2059.2,0.24576242]
[1773317554014,0.001,2059.5,2059.2,0.24576242]
[1773317554213,0.001,2059.5,2059.3,0.24466242]
[1773317554459,7.36007598,2059.8,2059.3,0.24466242]
[1773317554460,2.1193205,2059.8,2059.3,0.24466242]
[1773317554789,0.90557945,2059.7,2059.3,0.24466242]
[1773317556198,2.11926583,2059.9,2059.5,0.24067985]
[1773317556606,0.90557945,2059.8,2059.4,1.2139458]
[1773317557121,7.36043886,2060.0,2059.4,1.2139458]
[1773317557122,0.90557945,2060.0,2059.5,0.23920379]
[1773317557691,2.11917308,2060.0,2059.5,0.23920379]
[1773317558422,0.90557945,2060.0,2059.6,1.21382792]
[1773317558720,0.90557945,2060.0,2059.6,1.44999316]
[1773317558925,2.11917604,2060.0,2059.6,1.44999316]
[1773317560931,2.11917604,2060.0,2059.6,0.23616524]
[1773317561133,2.11917604,2060.0,2059.6,1.44998831]
[1773317561828,2.11917604,2060.0,2059.6,0.23616524]
[1773317562331,2.11917604,2060.0,2059.6,1.44999029]
[1773317564523,0.001,2059.8,2059.6,1.44999029]
[1773317567312,0.001,2059.8,2059.7,0.22331756]
[1773317569535,0.001,2059.8,2059.5,0.65615599]
[1773317569733,0.001,2059.8,2059.5,1.43506391]
[1773317570539,0.001,2059.8,2059.6,0.21961663]
[1773317571234,0.001,2059.8,2059.6,1.43339077]
[1773317571408,0.001,2059.8,2059.7,0.21796466]
[1773317573940,0.001,2059.8,2059.5,2.08463567]
[1773317574144,0.86335053,2059.8,2059.5,1.42957968]
[1773317576340,0.86335053,2059.8,2059.5,0.21574132]
[1773317576547,0.86235053,2059.7,2059.5,0.0011]
[1773317577231,0.86235053,2059.7,2059.3,0.0011]
[1773317577436,0.001,2059.6,2059.3,0.0011]
[1773317577636,0.86335053,2059.6,2059.3,0.0011]
[1773317580450,0.86235053,2059.4,2059.3,0.0011]
[1773317582538,0.001,2059.6,2059.3,0.20054875]
[1773317582920,2.07718236,2059.6,2059.3,0.20054875]
[1773317584149,0.86335053,2059.6,2059.3,0.20054875]
[1773317586049,0.86335053,2059.6,2059.3,1.41454956]
[1773317586628,2.07718485,2059.6,2059.3,0.20054875]
[1773317586830,0.86235053,2059.5,2059.3,0.0011]
[1773317589138,2.07624796,2059.5,2059.3,0.0011]
[1773317589837,0.001,2059.4,2059.3,0.0011]
[1773317590037,1.2148635,2059.6,2059.4,0.18629977]
[1773317590554,0.001,2059.6,2059.4,0.18629977]
[1773317592652,0.001,2059.6,2059.3,0.0011]
[1773317592653,0.86335053,2059.6,2059.3,0.0011]
[1773317593557,2.07623739,2059.5,2059.3,0.0011]
[1773317593857,0.86235053,2059.4,2059.3,0.0011]
[1773317599843,0.86335053,2059.6,2059.3,0.0011]
[1773317600035,2.07718066,2059.6,2059.3,0.0011]
[1773317601549,0.001,2059.8,2059.5,0.16482514]
[1773317601955,0.001,2059.8,2059.6,1.37865306]
[1773317602151,0.001,2059.8,2059.7,0.16482514]
[1773317605057,0.86431945,2060.0,2059.7,1.37859413]
[1773317606168,2.07880828,2060.2,2059.8,0.15761459]
[1773317606558,0.86431945,2060.1,2059.8,1.37129762]
[1773317609486,0.001,2060.2,2059.9,0.15034467]
[1773317609670,0.001,2060.2,2060.0,0.15034467]
[1773317610065,0.86531945,2060.2,2059.8,1.3640277]
[1773317610374,0.86531945,2060.2,2059.9,0.14850623]
[1773317610678,0.86531945,2060.2,2059.8,1.21366117]
[1773317610970,0.86431945,2060.1,2059.7,1.2137387]
[1773317611298,0.86431945,2060.0,2059.6,0.14850623]
[1773317611450,0.86431945,2060.0,2059.5,0.0011]
[1773317611776,0.86431945,2060.0,2059.5,1.21498379]
[1773317612066,0.86431945,2060.0,2059.5,1.36165978]
[1773317612655,2.07785495,2060.1,2059.7,0.14484251]
[1773317612855,0.86431945,2060.0,2059.7,0.14484251]
[1773317613458,0.86431945,2060.0,2059.6,1.86885395]
[1773317613653,1.2136,2060.0,2059.6,1.21377534]
[1773317613848,0.86431945,2059.9,2059.6,1.21377534]
[1773317614502,0.001,2060.0,2059.7,0.14117076]
[1773317614777,0.86531945,2060.0,2059.7,0.14117076]
[1773317616057,0.86531945,2060.0,2059.7,1.35489202]
[1773317619078,0.001,2060.4,2060.0,0.83015484]
[1773317619282,0.86431945,2060.8,2059.9,5.89570749]
[1773317619283,0.86431945,2060.8,2060.4,0.83015484]
[1773317619453,0.70231218,2060.9,2060.5,1.48523345]
[1773317621379,0.70231218,2060.9,2060.6,2.0433937]
[1773317622581,1.56663163,2060.9,2060.6,2.0433937]
[1773317622876,1.56663163,2060.9,2060.5,1.21324945]
[1773317623084,0.70231218,2060.9,2060.6,0.83015484]
[1773317623473,0.70231218,2060.9,2060.7,1.21317998]
[1773317624280,0.70231218,2060.9,2060.6,2.04334555]
[1773317625780,0.70231218,2060.9,2060.7,0.87184146]
[1773317626587,0.86820861,2061.3,2060.8,0.64867141]
[1773317626787,0.86720861,2061.1,2060.6,1.86186212]
[1773317626993,0.001,2060.7,2060.6,1.86186212]
[1773317627187,0.86720861,2061.0,2060.6,1.86186212]
[1773317627884,0.86720861,2061.0,2060.7,0.65507861]
[1773317628094,0.86720861,2061.2,2060.7,1.30269938]
[1773317629597,0.86720861,2061.2,2060.8,0.66599089]
[1773317630089,0.86720861,2061.1,2060.7,0.66599089]
[1773317630272,0.86720861,2061.1,2060.6,1.21319749]
[1773317630587,0.86720861,2061.1,2060.3,1.87963055]
[1773317631090,0.86720861,2061.1,2060.3,2.53470916]
[1773317631273,0.91344382,2061.0,2060.2,3.41744459]
[1773317631474,0.91344382,2061.0,2060.2,1.21344459]
[1773317631788,0.91344382,2061.0,2060.0,1.21356292]
[1773317632087,0.91344382,2060.8,2060.0,2.53374146]
[1773317632988,0.91344382,2060.8,2060.1,0.66392943]
[1773317633866,1.21317998,2060.7,2060.2,1.21347441]
[1773317634066,2.1266238,2060.7,2060.2,1.21347441]
[1773317634588,0.91344382,2060.7,2060.2,2.53012184]
[1773317637062,1.21314078,2060.8,2060.3,0.65917241]
[1773317637259,2.12653089,2060.9,2060.3,0.65917241]
[1773317637673,0.91344382,2060.8,2060.3,0.65917241]
[1773317638592,0.91344382,2060.8,2060.4,1.21335662]
[1773317639384,0.91344382,2060.8,2060.4,1.86884695]
[1773317639697,0.91344382,2060.8,2060.5,0.0011]
[1773317640278,0.91344382,2060.7,2060.5,0.0011]
[1773317640810,0.91344382,2060.6,2060.5,0.0011]
[1773317641383,0.91444382,2061.0,2060.5,1.30917263]
[1773317641897,0.91344382,2060.9,2060.5,0.65617861]
[1773317642205,0.91344382,2060.9,2060.5,1.30917263]
[1773317643001,0.001,2061.0,2060.6,1.86497297]
[1773317643175,0.001,2061.0,2060.7,0.65173411]
[1773317643688,0.91444382,2061.3,2060.6,1.21323886]
[1773317644707,0.91444382,2061.3,2060.5,1.86945827]
[1773317644876,0.91444382,2061.3,2060.5,1.21437966]
[1773317645072,0.91344382,2061.1,2060.5,1.21437966]
[1773317647500,0.91344382,2061.0,2060.5,1.85973159]
[1773317651794,0.91344382,2061.0,2060.6,0.65420849]
[1773317652107,0.91344382,2061.0,2060.7,1.21317998]
[1773317653983,0.91344382,2060.9,2060.5,4.85418165]
[1773317654183,0.91344382,2060.8,2060.5,0.0011]
[1773317655503,1.21300339,2061.0,2060.5,0.63543353]
[1773317655504,0.91344382,2061.0,2060.5,0.63543353]
[1773317656609,0.91344382,2061.0,2060.5,1.21435012]
[1773317656795,2.1264481,2061.0,2060.6,0.63277105]
[1773317656995,0.91344382,2060.9,2060.5,1.21435012]
[1773317657315,0.91344382,2060.9,2060.5,1.84712117]
[1773317658690,0.91344382,2060.9,2060.6,0.62963633]
[1773317659690,0.91444382,2061.1,2060.6,1.28384482]
[1773317659890,0.91444382,2061.1,2060.7,0.62806354]
[1773317660121,0.91344382,2061.2,2060.9,0.62806354]
[1773317660295,0.85065972,2061.2,2060.7,0.62726968]
[1773317660494,0.85065972,2061.2,2060.6,0.65420849]
[1773317660699,0.85065972,2061.1,2060.7,1.21317998]
[1773317661592,0.85065972,2061.1,2060.5,1.84008226]
[1773317661923,0.85065972,2061.1,2060.5,1.21437173]
[1773317662421,0.85065972,2061.1,2060.5,1.83848966]
[1773317663192,0.85065972,2060.9,2060.5,0.0011]
[1773317663619,0.85065972,2060.9,2060.5,1.2143897]
[1773317664422,0.85065972,2060.9,2060.5,1.21439585]
[1773317664827,0.85065972,2060.9,2060.5,2.48952522]
[1773317665726,0.85065972,2060.8,2060.5,0.0011]
[1773317666090,0.85065972,2060.8,2060.5,1.21439494]
[1773317666904,0.85065972,2060.8,2060.7,0.0011]
[1773317670714,2.06376813,2060.9,2060.7,0.0011]
[1773317671030,0.85065972,2060.9,2060.7,0.0011]
[1773317671232,2.06372402,2060.9,2060.7,0.0011]
[1773317671726,4.85203052,2061.0,2060.7,0.0011]
[1773317671727,0.85065972,2061.0,2060.7,0.0011]
[1773317672324,0.85065972,2061.0,2060.5,0.0011]
[1773317673626,0.85065972,2060.8,2060.5,0.0011]
[1773317674704,0.85065972,2060.8,2060.5,0.60699979]
[1773317675129,1.21301168,2061.0,2060.5,0.60699979]
[1773317675130,2.0636714,2061.0,2060.5,0.60699979]
[1773317675627,1.21312111,2060.8,2060.5,0.0011]
[1773317675832,2.06378083,2060.8,2060.5,0.0011]
[1773317676032,0.85065972,2060.8,2060.5,0.0011]
[1773317679517,2.06461347,2061.1,2060.5,0.88305572]
[1773317679721,1.21395375,2061.1,2060.5,0.88305572]
[1773317679923,2.06461347,2061.1,2060.5,0.88305572]
[1773317680243,2.06461347,2061.1,2060.7,0.88305572]